[Event "*** Titled Tuesday Blitz"]
[Site "Chess.com"]
[Date "2021.02.02"]
[Round "10"]
[White "GigaQuparadze"]
[Black "mbojan"]
[Result "1-0"]
[WhiteElo "2966"]
[BlackElo "2656"]
[TimeControl "180+1"]
[EndTime "11:57:14 PST"]
[Termination "GigaQuparadze won by resignation"]

1. e4 {[%clk 0:03:00.9]} 1... g6 {[%clk 0:03:00.9]} 2. d4 {[%clk 0:03:00.8]}
2... Bg7 {[%clk 0:03:01.6]} 3. Nc3 {[%clk 0:03:01.5]} 3... d6 {[%clk 0:03:02.2]}
4. f4 {[%clk 0:02:56.7]} 4... a6 {[%clk 0:03:02.3]} 5. Nf3 {[%clk 0:02:56.5]}
5... b5 {[%clk 0:03:02.6]} 6. Bd3 {[%clk 0:02:56.8]} 6... Nd7 {[%clk 0:03:02.3]}
7. e5 {[%clk 0:02:56.9]} 7... c5 {[%clk 0:03:02.7]} 8. dxc5 {[%clk 0:02:50.2]}
8... Nxc5 {[%clk 0:02:59.5]} 9. Be3 {[%clk 0:02:47.3]} 9... Nxd3+ {[%clk
0:02:31.2]} 10. Qxd3 {[%clk 0:02:48.2]} 10... Nh6 {[%clk 0:02:24.3]} 11. exd6
{[%clk 0:02:42.4]} 11... Nf5 {[%clk 0:01:57]} 12. O-O-O {[%clk 0:02:36.5]} 12...
O-O {[%clk 0:01:46.1]} 13. dxe7 {[%clk 0:02:27.4]} 13... Qxe7 {[%clk 0:01:43.3]}
14. Nd5 {[%clk 0:02:25.4]} 14... Qd8 {[%clk 0:01:13.4]} 15. Bb6 {[%clk
0:02:23.9]} 15... Qd6 {[%clk 0:00:54.5]} 16. g4 {[%clk 0:02:09.5]} 16... Ne7
{[%clk 0:00:44.4]} 17. Nxe7+ {[%clk 0:02:08.6]} 17... Qxe7 {[%clk 0:00:45.3]}
18. h3 {[%clk 0:00:56.5]} 18... Bb7 {[%clk 0:00:29.9]} 19. Rhf1 {[%clk
0:00:53.3]} 19... Be4 {[%clk 0:00:13.5]} 20. Qd6 {[%clk 0:00:47.2]} 20... Rac8
{[%clk 0:00:06.1]} 21. Rf2 {[%clk 0:00:45]} 21... Qb7 {[%clk 0:00:04.2]} 22. Nd4
{[%clk 0:00:36.6]} 22... Rfe8 {[%clk 0:00:03.8]} 23. Ba5 {[%clk 0:00:30.2]}
23... Bf8 {[%clk 0:00:03.8]} 24. Qb6 {[%clk 0:00:30]} 24... Qd5 {[%clk
0:00:02.4]} 25. Nb3 {[%clk 0:00:14.7]} 25... Bc5 {[%clk 0:00:01.2]} 26. Nxc5
{[%clk 0:00:11.4]} 26... Qxc5 {[%clk 0:00:02.1]} 27. Qxc5 {[%clk 0:00:11.2]}
27... Rxc5 {[%clk 0:00:03]} 28. Re1 {[%clk 0:00:11.2]} 28... Rcc8 {[%clk
0:00:02.9]} 29. Bc3 {[%clk 0:00:10.9]} 29... Bc6 {[%clk 0:00:03.1]} 30. Rxe8+
{[%clk 0:00:09.3]} 30... Rxe8 {[%clk 0:00:03.7]} 31. f5 {[%clk 0:00:10.1]} 31...
h5 {[%clk 0:00:03.4]} 32. fxg6 {[%clk 0:00:09.8]} 32... fxg6 {[%clk 0:00:04.3]}
33. Rf6 {[%clk 0:00:10]} 33... Be4 {[%clk 0:00:04.7]} 34. gxh5 {[%clk
0:00:10.4]} 34... gxh5 {[%clk 0:00:05.6]} 35. Rh6 {[%clk 0:00:10.7]} 35... Bf5
{[%clk 0:00:05.3]} 36. Rxh5 {[%clk 0:00:10.1]} 36... Bg6 {[%clk 0:00:05.9]} 37.
Rh8+ {[%clk 0:00:09.3]} 37... Kf7 {[%clk 0:00:06.2]} 38. Rxe8 {[%clk 0:00:09.6]}
38... Kxe8 {[%clk 0:00:07.1]} 39. h4 {[%clk 0:00:10.2]} 39... Kf7 {[%clk
0:00:07.4]} 40. Bd2 {[%clk 0:00:10]} 40... Bf5 {[%clk 0:00:07.8]} 41. Bg5 {[%clk
0:00:10.3]} 41... Kg6 {[%clk 0:00:08.1]} 42. b3 {[%clk 0:00:10.7]} 42... Be6
{[%clk 0:00:08.7]} 43. Kb2 {[%clk 0:00:11]} 43... Bd5 {[%clk 0:00:09.2]} 44. Kc3
{[%clk 0:00:11.3]} 44... Be4 {[%clk 0:00:09.8]} 45. Kd2 {[%clk 0:00:11.6]} 45...
Bf5 {[%clk 0:00:10.2]} 46. c4 {[%clk 0:00:11.7]} 46... bxc4 {[%clk 0:00:10.4]}
47. bxc4 {[%clk 0:00:12.6]} 47... Be6 {[%clk 0:00:10.6]} 48. Kc3 {[%clk
0:00:12.7]} 48... a5 {[%clk 0:00:11.3]} 49. Kd4 {[%clk 0:00:13]} 49... Bf7
{[%clk 0:00:11.1]} 50. a3 {[%clk 0:00:13.5]} 50... Be6 {[%clk 0:00:11.1]} 51. c5
{[%clk 0:00:13.7]} 51... Kf7 {[%clk 0:00:10]} 52. Ke5 {[%clk 0:00:14]} 52... Bg4
{[%clk 0:00:09.9]} 53. Kd6 {[%clk 0:00:14.3]} 53... Ke8 {[%clk 0:00:10.5]} 54.
c6 {[%clk 0:00:14.7]} 54... Bf3 {[%clk 0:00:11.2]} 55. c7 {[%clk 0:00:15]} 55...
Bg4 {[%clk 0:00:11.8]} 56. Kc6 {[%clk 0:00:14.5]} 56... Bc8 {[%clk 0:00:11]} 57.
h5 {[%clk 0:00:14.1]} 57... Kf7 {[%clk 0:00:11.6]} 58. h6 {[%clk 0:00:14.5]}
58... Kg6 {[%clk 0:00:12.3]} 59. Bd2 {[%clk 0:00:14.7]} 1-0

[Event "*** Titled Tuesday Blitz"]
[Site "Chess.com"]
[Date "2021.02.02"]
[Round "10"]
[White "Balla_Tamas"]
[Black "GregShahade"]
[Result "0-1"]
[WhiteElo "2496"]
[BlackElo "2665"]
[TimeControl "180+1"]
[EndTime "11:57:15 PST"]
[Termination "GregShahade won by resignation"]

1. d4 {[%clk 0:03:00.9]} 1... Nf6 {[%clk 0:02:59.3]} 2. c4 {[%clk 0:02:59.1]}
2... g6 {[%clk 0:02:59.6]} 3. Nc3 {[%clk 0:02:58]} 3... d5 {[%clk 0:02:59.8]} 4.
cxd5 {[%clk 0:02:49.3]} 4... Nxd5 {[%clk 0:03:00.7]} 5. Nxd5 {[%clk 0:02:48.4]}
5... Qxd5 {[%clk 0:02:59.4]} 6. e3 {[%clk 0:02:49.1]} 6... Bg7 {[%clk
0:02:56.9]} 7. Ne2 {[%clk 0:02:49.2]} 7... O-O {[%clk 0:02:55.2]} 8. Nc3 {[%clk
0:02:49.1]} 8... Qd6 {[%clk 0:02:55.7]} 9. Be2 {[%clk 0:02:36.4]} 9... c5 {[%clk
0:02:55.7]} 10. Ne4 {[%clk 0:02:35.7]} 10... Qc7 {[%clk 0:02:55.9]} 11. Nxc5
{[%clk 0:02:34.8]} 11... e5 {[%clk 0:02:56.1]} 12. O-O {[%clk 0:02:31.6]} 12...
Rd8 {[%clk 0:02:56.2]} 13. Nb3 {[%clk 0:02:31.2]} 13... Be6 {[%clk 0:02:40.8]}
14. Bd2 {[%clk 0:02:30.3]} 14... Nc6 {[%clk 0:02:26.8]} 15. Rc1 {[%clk
0:02:25.2]} 15... Qe7 {[%clk 0:02:00.8]} 16. Bc3 {[%clk 0:01:56]} 16... exd4
{[%clk 0:01:55.1]} 17. Nxd4 {[%clk 0:01:53.6]} 17... Nxd4 {[%clk 0:01:53.9]} 18.
Bxd4 {[%clk 0:01:50.4]} 18... Bxd4 {[%clk 0:01:52.1]} 19. exd4 {[%clk
0:01:50.1]} 19... Bxa2 {[%clk 0:01:51.2]} 20. Bf3 {[%clk 0:01:49.7]} 20... Bd5
{[%clk 0:01:50.6]} 21. Re1 {[%clk 0:01:48.9]} 21... Qf6 {[%clk 0:01:43]} 22. Rc7
{[%clk 0:01:36.8]} 22... Bxf3 {[%clk 0:01:31.6]} 23. Qxf3 {[%clk 0:01:36.5]}
23... Qxf3 {[%clk 0:01:27.1]} 24. gxf3 {[%clk 0:01:36.5]} 24... Rxd4 {[%clk
0:01:24.2]} 25. Rxb7 {[%clk 0:01:35.4]} 25... a5 {[%clk 0:01:23.9]} 26. Ree7
{[%clk 0:01:33.9]} 26... Rf4 {[%clk 0:01:24]} 27. Kg2 {[%clk 0:01:33.4]} 27...
h5 {[%clk 0:01:18.9]} 28. Kg3 {[%clk 0:01:28.8]} 28... Rf5 {[%clk 0:01:18.9]}
29. Ra7 {[%clk 0:01:22.5]} 29... Rb8 {[%clk 0:01:15.9]} 30. Reb7 {[%clk
0:01:22]} 30... Rc8 {[%clk 0:01:14]} 31. Rc7 {[%clk 0:01:22]} 31... Rd8 {[%clk
0:01:09.3]} 32. Rd7 {[%clk 0:01:21.8]} 32... Re8 {[%clk 0:01:08.8]} 33. Re7
{[%clk 0:01:21.7]} 33... Rxe7 {[%clk 0:00:54.1]} 34. Rxe7 {[%clk 0:01:20.9]}
34... Rb5 {[%clk 0:00:52]} 35. Ra7 {[%clk 0:01:17.5]} 35... Kg7 {[%clk
0:00:52.2]} 36. h4 {[%clk 0:01:16.9]} 36... Kf6 {[%clk 0:00:50.7]} 37. Ra6+
{[%clk 0:01:16.3]} 37... Ke7 {[%clk 0:00:48.1]} 38. Ra7+ {[%clk 0:01:15.7]}
38... Ke6 {[%clk 0:00:48.4]} 39. Ra6+ {[%clk 0:01:15.4]} 39... Ke5 {[%clk
0:00:36.6]} 40. Ra7 {[%clk 0:01:14.4]} 40... Kf6 {[%clk 0:00:34.6]} 41. Ra6+
{[%clk 0:01:14.2]} 41... Kg7 {[%clk 0:00:35]} 42. Kg2 {[%clk 0:01:07.8]} 42...
Rb4 {[%clk 0:00:34.1]} 43. Kg3 {[%clk 0:01:04.8]} 43... a4 {[%clk 0:00:33.7]}
44. f4 {[%clk 0:01:02.9]} 44... Kf8 {[%clk 0:00:32.1]} 45. Ra7 {[%clk
0:00:55.6]} 45... Kg7 {[%clk 0:00:31.4]} 46. Ra6 {[%clk 0:00:55.3]} 46... Rb3+
{[%clk 0:00:28.1]} 47. f3 {[%clk 0:00:53.8]} 47... Rb4 {[%clk 0:00:28.1]} 48.
Ra7 {[%clk 0:00:42.2]} 48... Kf6 {[%clk 0:00:28.2]} 49. Ra6+ {[%clk 0:00:42.9]}
49... Ke7 {[%clk 0:00:28]} 50. Ra7+ {[%clk 0:00:43.1]} 50... Ke6 {[%clk
0:00:28.5]} 51. Ra6+ {[%clk 0:00:43.6]} 51... Kd5 {[%clk 0:00:28.9]} 52. Ra7
{[%clk 0:00:42.7]} 52... f5 {[%clk 0:00:28.4]} 53. Ra6 {[%clk 0:00:42.4]} 53...
Kc4 {[%clk 0:00:28.7]} 54. Rxg6 {[%clk 0:00:39.6]} 54... Rxb2 {[%clk 0:00:28.9]}
55. Rg5 {[%clk 0:00:39.1]} 55... Rb5 {[%clk 0:00:25.1]} 56. Rxh5 {[%clk
0:00:22.3]} 56... a3 {[%clk 0:00:25.1]} 57. Rh8 {[%clk 0:00:23]} 57... Ra5
{[%clk 0:00:16.4]} 58. Rc8+ {[%clk 0:00:22.4]} 58... Kb3 {[%clk 0:00:17]} 59.
Rc1 {[%clk 0:00:22.1]} 59... Kb2 {[%clk 0:00:17]} 60. Rh1 {[%clk 0:00:20.4]}
60... a2 {[%clk 0:00:17.5]} 61. h5 {[%clk 0:00:20.2]} 61... a1=Q {[%clk
0:00:17.2]} 62. Rxa1 {[%clk 0:00:19.8]} 62... Rxa1 {[%clk 0:00:17.7]} 63. Kh4
{[%clk 0:00:20]} 63... Rg1 {[%clk 0:00:17.2]} 64. h6 {[%clk 0:00:19.7]} 64...
Kc3 {[%clk 0:00:17.1]} 65. Kh5 {[%clk 0:00:19.7]} 65... Kd4 {[%clk 0:00:16.9]}
66. h7 {[%clk 0:00:19.9]} 66... Ke3 {[%clk 0:00:15.8]} 67. Kh6 {[%clk
0:00:19.9]} 67... Kxf4 {[%clk 0:00:14.5]} 68. h8=Q {[%clk 0:00:19.6]} 68... Rh1+
{[%clk 0:00:14.9]} 69. Kg7 {[%clk 0:00:20.3]} 69... Rxh8 {[%clk 0:00:15.8]} 70.
Kxh8 {[%clk 0:00:20.9]} 70... Kxf3 {[%clk 0:00:16.5]} 71. Kg7 {[%clk 0:00:21.8]}
71... f4 {[%clk 0:00:17]} 0-1

[Event "*** Titled Tuesday Blitz"]
[Site "Chess.com"]
[Date "2021.02.02"]
[Round "10"]
[White "Grineva_Marianna"]
[Black "Joseacorrea"]
[Result "1-0"]
[WhiteElo "2232"]
[BlackElo "2015"]
[TimeControl "180+1"]
[EndTime "11:57:19 PST"]
[Termination "Grineva_Marianna won on time"]

1. e4 {[%clk 0:03:00.9]} 1... c5 {[%clk 0:02:59.6]} 2. Nf3 {[%clk 0:02:59.8]}
2... g6 {[%clk 0:02:58.4]} 3. d4 {[%clk 0:02:58.5]} 3... cxd4 {[%clk 0:02:59.3]}
4. Nxd4 {[%clk 0:02:56.9]} 4... Bg7 {[%clk 0:02:59.1]} 5. c4 {[%clk 0:02:57]}
5... Nc6 {[%clk 0:02:59.2]} 6. Be3 {[%clk 0:02:56.1]} 6... d6 {[%clk 0:02:59.5]}
7. Nc3 {[%clk 0:02:55.3]} 7... f5 {[%clk 0:02:57.5]} 8. exf5 {[%clk 0:02:48.6]}
8... Bxf5 {[%clk 0:02:57.2]} 9. Nxf5 {[%clk 0:02:47.6]} 9... gxf5 {[%clk
0:02:58.1]} 10. Qh5+ {[%clk 0:02:46.2]} 10... Kf8 {[%clk 0:02:54]} 11. Qxf5+
{[%clk 0:02:42.6]} 11... Nf6 {[%clk 0:02:54.5]} 12. Bd3 {[%clk 0:02:33.7]} 12...
Qc8 {[%clk 0:02:44.9]} 13. O-O {[%clk 0:02:24.1]} 13... Qxf5 {[%clk 0:02:30.9]}
14. Bxf5 {[%clk 0:02:25]} 14... Ne5 {[%clk 0:02:23.9]} 15. Be6 {[%clk
0:02:21.5]} 15... Nfg4 {[%clk 0:02:14.9]} 16. Bg5 {[%clk 0:02:03.7]} 16... Nf6
{[%clk 0:01:44.6]} 17. Rad1 {[%clk 0:01:56.7]} 17... h6 {[%clk 0:01:40.9]} 18.
Be3 {[%clk 0:01:45.5]} 18... Neg4 {[%clk 0:01:36.8]} 19. Bd4 {[%clk 0:01:41.9]}
19... h5 {[%clk 0:01:36]} 20. h3 {[%clk 0:01:40.8]} 20... Nh6 {[%clk 0:01:33.8]}
21. Nd5 {[%clk 0:01:35.8]} 21... Ne4 {[%clk 0:01:11.6]} 22. Nc7 {[%clk
0:01:16.6]} 22... Rd8 {[%clk 0:01:02]} 23. Bd5 {[%clk 0:01:12.9]} 23... Bxd4
{[%clk 0:00:53.8]} 24. Rxd4 {[%clk 0:01:06.6]} 24... Nc5 {[%clk 0:00:44.7]} 25.
b4 {[%clk 0:01:00.2]} 25... e5 {[%clk 0:00:44.8]} 26. Rd2 {[%clk 0:00:46.8]}
26... Nd7 {[%clk 0:00:25.8]} 27. Ne6+ {[%clk 0:00:45.3]} 27... Ke7 {[%clk
0:00:26.2]} 28. Nxd8 {[%clk 0:00:45]} 28... Rxd8 {[%clk 0:00:26.7]} 29. Bxb7
{[%clk 0:00:45]} 29... Nf6 {[%clk 0:00:26]} 30. Bf3 {[%clk 0:00:40.8]} 30... Nf5
{[%clk 0:00:22.2]} 31. c5 {[%clk 0:00:34.7]} 31... Nd4 {[%clk 0:00:22]} 32. c6
{[%clk 0:00:20.5]} 32... d5 {[%clk 0:00:16.2]} 33. Re1 {[%clk 0:00:18.2]} 33...
Kd6 {[%clk 0:00:15.9]} 34. b5 {[%clk 0:00:14.9]} 34... Nxb5 {[%clk 0:00:14.8]}
35. c7 {[%clk 0:00:15.3]} 35... Nxc7 {[%clk 0:00:13.1]} 36. Rc2 {[%clk
0:00:14.6]} 36... Ne6 {[%clk 0:00:11.7]} 37. Rec1 {[%clk 0:00:14.5]} 37... Nd4
{[%clk 0:00:12.1]} 38. Rc7 {[%clk 0:00:13.7]} 38... Rd7 {[%clk 0:00:11.5]} 39.
Rc8 {[%clk 0:00:11.3]} 39... e4 {[%clk 0:00:10.5]} 40. Bd1 {[%clk 0:00:10.3]}
40... Ke5 {[%clk 0:00:09.2]} 41. Rh8 {[%clk 0:00:08.4]} 41... Kf4 {[%clk
0:00:07.4]} 42. Kf1 {[%clk 0:00:08.3]} 42... e3 {[%clk 0:00:04.9]} 43. fxe3+
{[%clk 0:00:07.7]} 43... Kxe3 {[%clk 0:00:05.8]} 44. Bxh5 {[%clk 0:00:07]} 44...
Ne4 {[%clk 0:00:04.8]} 45. Bf3 {[%clk 0:00:05.9]} 45... Nxf3 {[%clk 0:00:04]}
46. gxf3 {[%clk 0:00:06.8]} 46... Kxf3 {[%clk 0:00:04.8]} 47. Rf8+ {[%clk
0:00:06.2]} 47... Ke3 {[%clk 0:00:05]} 48. Re1+ {[%clk 0:00:04.4]} 48... Kd2
{[%clk 0:00:04.7]} 49. Re2+ {[%clk 0:00:03.4]} 49... Kd3 {[%clk 0:00:04.9]} 50.
Rf3+ {[%clk 0:00:03.4]} 50... Kd4 {[%clk 0:00:04.4]} 51. h4 {[%clk 0:00:03]}
51... Rh7 {[%clk 0:00:03.4]} 52. Rh3 {[%clk 0:00:02.2]} 52... a5 {[%clk
0:00:01.5]} 53. h5 {[%clk 0:00:02]} 53... Rf7+ {[%clk 0:00:01.3]} 54. Ke1 {[%clk
0:00:01.6]} 1-0

[Event "*** Titled Tuesday Blitz"]
[Site "Chess.com"]
[Date "2021.02.02"]
[Round "10"]
[White "Chernobay_Artem"]
[Black "dretch"]
[Result "0-1"]
[WhiteElo "2626"]
[BlackElo "2856"]
[TimeControl "180+1"]
[EndTime "11:57:20 PST"]
[Termination "dretch won by resignation"]

1. d4 {[%clk 0:02:59.1]} 1... d5 {[%clk 0:02:59.9]} 2. c4 {[%clk 0:02:58.4]}
2... c6 {[%clk 0:02:59.9]} 3. Nf3 {[%clk 0:02:58]} 3... Nf6 {[%clk 0:03:00]} 4.
Nc3 {[%clk 0:02:58.3]} 4... dxc4 {[%clk 0:02:59.2]} 5. a4 {[%clk 0:02:58.3]}
5... Bf5 {[%clk 0:02:58.7]} 6. e3 {[%clk 0:02:58.4]} 6... e6 {[%clk 0:02:58.8]}
7. Bxc4 {[%clk 0:02:58.7]} 7... Bb4 {[%clk 0:02:59]} 8. O-O {[%clk 0:02:59.3]}
8... Nbd7 {[%clk 0:02:57.4]} 9. Qe2 {[%clk 0:02:59.9]} 9... O-O {[%clk
0:02:54.9]} 10. e4 {[%clk 0:02:58.7]} 10... Bg4 {[%clk 0:02:55.1]} 11. Bd3
{[%clk 0:02:58.8]} 11... e5 {[%clk 0:02:53]} 12. Be3 {[%clk 0:02:46.4]} 12...
exd4 {[%clk 0:02:52.2]} 13. Bxd4 {[%clk 0:02:46.4]} 13... Nc5 {[%clk 0:02:52.8]}
14. Bxc5 {[%clk 0:02:40.5]} 14... Bxc5 {[%clk 0:02:52.7]} 15. e5 {[%clk
0:02:40.8]} 15... Re8 {[%clk 0:02:52]} 16. Rfe1 {[%clk 0:02:27.1]} 16... Qc7
{[%clk 0:01:54.8]} 17. Ne4 {[%clk 0:01:56.9]} 17... Rxe5 {[%clk 0:01:48.5]} 18.
Nxf6+ {[%clk 0:01:56.6]} 18... gxf6 {[%clk 0:01:48.7]} 19. Qd2 {[%clk
0:01:57.1]} 19... Rh5 {[%clk 0:01:41.8]} 20. Be2 {[%clk 0:01:34.3]} 20... Bxf3
{[%clk 0:01:29.1]} 21. Bxf3 {[%clk 0:01:35.2]} 21... Qxh2+ {[%clk 0:01:28.9]}
22. Kf1 {[%clk 0:01:35.7]} 22... Qh1+ {[%clk 0:01:28.9]} 23. Ke2 {[%clk
0:01:36.1]} 23... Re5+ {[%clk 0:01:28.4]} 24. Kd1 {[%clk 0:01:36.2]} 24... Rxe1+
{[%clk 0:00:57.6]} 25. Qxe1 {[%clk 0:01:35.9]} 25... Qh4 {[%clk 0:00:57.3]} 26.
Kc2 {[%clk 0:01:25.7]} 26... Bxf2 {[%clk 0:00:48.2]} 27. Qe2 {[%clk 0:01:21.5]}
27... Rd8 {[%clk 0:00:39.3]} 28. Be4 {[%clk 0:01:14.3]} 28... Re8 {[%clk
0:00:33]} 29. Rf1 {[%clk 0:01:01.2]} 29... Bg3 {[%clk 0:00:30.2]} 30. Kd3 {[%clk
0:00:58.7]} 30... Kf8 {[%clk 0:00:15.2]} 31. Qf3 {[%clk 0:00:54.4]} 31... Be5
{[%clk 0:00:13.9]} 32. g4 {[%clk 0:00:48.9]} 32... Rd8+ {[%clk 0:00:13.6]} 33.
Kc2 {[%clk 0:00:48.3]} 33... Rd4 {[%clk 0:00:13.5]} 34. Bf5 {[%clk 0:00:34.5]}
34... Rxa4 {[%clk 0:00:07.8]} 35. Qb3 {[%clk 0:00:31.5]} 35... Rd4 {[%clk
0:00:07.1]} 36. Qxb7 {[%clk 0:00:30.3]} 36... Qh2+ {[%clk 0:00:07.1]} 37. Kb1
{[%clk 0:00:30]} 37... Qe2 {[%clk 0:00:07]} 38. Rh1 {[%clk 0:00:25.6]} 38...
Rd1+ {[%clk 0:00:05.7]} 39. Rxd1 {[%clk 0:00:18.3]} 39... Qxd1+ {[%clk
0:00:06.6]} 40. Ka2 {[%clk 0:00:18.9]} 40... Qa4+ {[%clk 0:00:06.8]} 41. Kb1
{[%clk 0:00:19.1]} 41... Kg7 {[%clk 0:00:07.7]} 42. Bc2 {[%clk 0:00:16.6]} 42...
Qxg4 {[%clk 0:00:06.9]} 43. Qxc6 {[%clk 0:00:14.4]} 43... h5 {[%clk 0:00:07]}
44. Bb3 {[%clk 0:00:05.9]} 44... h4 {[%clk 0:00:06.3]} 45. Qb7 {[%clk
0:00:05.9]} 45... Qg6+ {[%clk 0:00:06.3]} 46. Ka2 {[%clk 0:00:05.9]} 46... h3
{[%clk 0:00:06.4]} 47. Bd5 {[%clk 0:00:05.4]} 47... h2 {[%clk 0:00:06.3]} 48.
Qxa7 {[%clk 0:00:05.7]} 48... Qh5 {[%clk 0:00:06.3]} 49. Qb7 {[%clk 0:00:05.5]}
49... Kh6 {[%clk 0:00:06.3]} 50. Qa8 {[%clk 0:00:03.4]} 50... Kg5 {[%clk
0:00:05.6]} 51. Qg8+ {[%clk 0:00:04]} 51... Kf4 {[%clk 0:00:05.8]} 52. Qg2
{[%clk 0:00:04.3]} 52... f5 {[%clk 0:00:04.4]} 53. Qf2+ {[%clk 0:00:03.8]} 53...
Kg5 {[%clk 0:00:04.5]} 54. Qg2+ {[%clk 0:00:04.2]} 54... Kf6 {[%clk 0:00:04.3]}
55. Qf2 {[%clk 0:00:04.2]} 55... Qg4 {[%clk 0:00:04]} 56. Qb6+ {[%clk
0:00:03.9]} 56... Kg7 {[%clk 0:00:04.2]} 57. Qe3 {[%clk 0:00:03.5]} 57... Qa4+
{[%clk 0:00:03.2]} 58. Kb1 {[%clk 0:00:03.7]} 58... Qd1+ {[%clk 0:00:03.4]} 59.
Ka2 {[%clk 0:00:04]} 59... Qxd5+ {[%clk 0:00:04.3]} 0-1

[Event "*** Titled Tuesday Blitz"]
[Site "Chess.com"]
[Date "2021.02.02"]
[Round "10"]
[White "druskacik"]
[Black "anon481216"]
[Result "0-1"]
[WhiteElo "2571"]
[BlackElo "2479"]
[TimeControl "180+1"]
[EndTime "11:57:22 PST"]
[Termination "anon481216 won by resignation"]

1. d4 {[%clk 0:02:57.7]} 1... Nf6 {[%clk 0:02:59.6]} 2. Bg5 {[%clk 0:02:58.1]}
2... Ne4 {[%clk 0:02:57.5]} 3. Bf4 {[%clk 0:02:57.5]} 3... d5 {[%clk 0:02:57.8]}
4. e3 {[%clk 0:02:56]} 4... c5 {[%clk 0:02:47.3]} 5. Nd2 {[%clk 0:02:50]} 5...
Nxd2 {[%clk 0:02:45.4]} 6. Qxd2 {[%clk 0:02:50.9]} 6... Nc6 {[%clk 0:02:44.8]}
7. c3 {[%clk 0:02:47.9]} 7... Bf5 {[%clk 0:02:41.7]} 8. Bd3 {[%clk 0:02:46]}
8... Bxd3 {[%clk 0:02:41.1]} 9. Qxd3 {[%clk 0:02:46.9]} 9... e6 {[%clk
0:02:41.5]} 10. Nf3 {[%clk 0:02:39.6]} 10... cxd4 {[%clk 0:02:28.5]} 11. Nxd4
{[%clk 0:02:26.3]} 11... Nxd4 {[%clk 0:02:18]} 12. cxd4 {[%clk 0:02:15.9]} 12...
Bb4+ {[%clk 0:02:15.3]} 13. Ke2 {[%clk 0:02:15.9]} 13... O-O {[%clk 0:02:14.8]}
14. Rhc1 {[%clk 0:02:14.8]} 14... Rc8 {[%clk 0:01:55.5]} 15. Qb5 {[%clk
0:02:10.2]} 15... Qe7 {[%clk 0:01:43.7]} 16. a3 {[%clk 0:02:07.2]} 16... Bd6
{[%clk 0:01:43.3]} 17. Bg3 {[%clk 0:01:56.5]} 17... Bxg3 {[%clk 0:01:33.1]} 18.
hxg3 {[%clk 0:01:57.4]} 18... Rc7 {[%clk 0:01:32.7]} 19. Rxc7 {[%clk 0:01:33.2]}
19... Qxc7 {[%clk 0:01:32]} 20. Qc5 {[%clk 0:01:34.1]} 20... Rc8 {[%clk
0:01:18]} 21. Rc1 {[%clk 0:01:32.8]} 21... Qxc5 {[%clk 0:01:17.3]} 22. dxc5
{[%clk 0:01:14]} 22... Kf8 {[%clk 0:01:11.3]} 23. b4 {[%clk 0:01:13.9]} 23...
Ke7 {[%clk 0:01:10.8]} 24. Kd3 {[%clk 0:01:07.5]} 24... e5 {[%clk 0:01:10.7]}
25. g4 {[%clk 0:01:01.7]} 25... h6 {[%clk 0:01:05.3]} 26. Rh1 {[%clk 0:00:52.5]}
26... f6 {[%clk 0:01:03]} 27. Rc1 {[%clk 0:00:51.2]} 27... Ke6 {[%clk
0:00:52.5]} 28. f3 {[%clk 0:00:50.6]} 28... a6 {[%clk 0:00:49.8]} 29. a4 {[%clk
0:00:48.2]} 29... Rc7 {[%clk 0:00:42]} 30. Rc2 {[%clk 0:00:44.5]} 30... Rc8
{[%clk 0:00:41.5]} 31. Rc3 {[%clk 0:00:44]} 31... Rc7 {[%clk 0:00:40.6]} 32. Rc2
{[%clk 0:00:39.5]} 32... Rc8 {[%clk 0:00:40.5]} 33. Rb2 {[%clk 0:00:38.5]} 33...
Rc7 {[%clk 0:00:39.2]} 34. Rb1 {[%clk 0:00:38]} 34... a5 {[%clk 0:00:20]} 35.
bxa5 {[%clk 0:00:29.3]} 35... Rxc5 {[%clk 0:00:14.9]} 36. Rb6+ {[%clk
0:00:29.1]} 36... Kf7 {[%clk 0:00:11]} 37. Rxb7+ {[%clk 0:00:29.3]} 37... Kg6
{[%clk 0:00:11.6]} 38. Rb5 {[%clk 0:00:29]} 38... Rc4 {[%clk 0:00:09.6]} 39.
Rxd5 {[%clk 0:00:28.4]} 39... Rxa4 {[%clk 0:00:09.7]} 40. g3 {[%clk 0:00:20.7]}
40... h5 {[%clk 0:00:09]} 41. gxh5+ {[%clk 0:00:20.6]} 41... Kxh5 {[%clk
0:00:09.1]} 42. Rc5 {[%clk 0:00:19.4]} 42... Ra3+ {[%clk 0:00:07.4]} 43. Ke4
{[%clk 0:00:18.6]} 43... Kg6 {[%clk 0:00:06.7]} 44. f4 {[%clk 0:00:18.2]} 44...
exf4 {[%clk 0:00:06.5]} 45. gxf4 {[%clk 0:00:18.2]} 45... Ra4+ {[%clk
0:00:06.9]} 46. Kf3 {[%clk 0:00:18.5]} 46... Ra3 {[%clk 0:00:07.1]} 47. Rb5
{[%clk 0:00:19]} 47... Kh6 {[%clk 0:00:06.6]} 48. Ke4 {[%clk 0:00:18.5]} 48...
Kg6 {[%clk 0:00:06]} 49. Kd4 {[%clk 0:00:17.8]} 49... Ra4+ {[%clk 0:00:06]} 50.
Kc5 {[%clk 0:00:17.1]} 50... Re4 {[%clk 0:00:04.5]} 51. Rb3 {[%clk 0:00:15.7]}
51... Ra4 {[%clk 0:00:04.1]} 52. Kb6 {[%clk 0:00:15.7]} 52... Kf5 {[%clk
0:00:03.6]} 53. a6 {[%clk 0:00:16.2]} 53... Ke4 {[%clk 0:00:02.6]} 54. Rb4+
{[%clk 0:00:14.3]} 54... Rxb4+ {[%clk 0:00:02.2]} 55. Ka5 {[%clk 0:00:14.9]}
55... Rb1 {[%clk 0:00:01.8]} 56. a7 {[%clk 0:00:15.5]} 56... Ra1+ {[%clk
0:00:02.4]} 57. Kb6 {[%clk 0:00:16.4]} 57... Kxe3 {[%clk 0:00:02]} 58. Kb7
{[%clk 0:00:16]} 58... Kxf4 {[%clk 0:00:02.2]} 59. a8=Q {[%clk 0:00:16.9]} 59...
Rxa8 {[%clk 0:00:02]} 60. Kxa8 {[%clk 0:00:17.8]} 60... g5 {[%clk 0:00:02.2]}
61. Kb7 {[%clk 0:00:17.8]} 61... g4 {[%clk 0:00:03.1]} 62. Kc6 {[%clk
0:00:18.7]} 62... g3 {[%clk 0:00:04]} 63. Kd6 {[%clk 0:00:19.6]} 63... g2 {[%clk
0:00:04.9]} 64. Ke6 {[%clk 0:00:20.5]} 64... g1=Q {[%clk 0:00:05.8]} 0-1